{"text_format":"1","workbook":"xlsx","n_sheets":2,"sheets":["Sheet1","Icons"],"not_rendered":{"charts":0,"images":25,"macros":1,"external_links":0,"defined_names":14,"comments":0,"pivot_tables":0},"unopened":[],"bounds":{"document_bytes":16777216,"sheet_cells":100000,"rows_first":2000,"rows_last":500,"rows_between":2000,"halvings":0,"cell_chars":16384,"cell_head_chars":4096},"cells_cut":0,"cells_raw":0,"read":"whole","date_system":"1900"}

{"sheet":"Sheet1","index":0,"n_rows":17,"n_cols":37,"rows_kept":17,"cut":false,"hidden":false,"merged":[[1,1,1,36]]}
[]
[null,"Habit Tracker"]
[null,null,"Habits",{"$f":"_xlfn.SEQUENCE(,31,1)","v":1},2,3,4,5,6,7,8,9,10,11,12,13,14,15,16,17,18,19,20,21,22,23,24,25,26,27,28,29,30,31,"Completed","%","Progress"]
[null,{"$f":"_xlfn.SEQUENCE(10,,1)","v":1},"Drink 2L of Water",false,false,false,false,false,false,false,false,false,false,false,false,false,false,false,false,false,false,false,false,false,false,false,false,false,false,false,false,false,false,false,{"$f":"COUNTIF(D4:AH4, TRUE)","v":0},{"$f":"AI4/COUNT(_xlfn.ANCHORARRAY($D$3))","v":0},{"$f":"_xlfn.IFS(AJ4=0%, \"\",AJ4<=20%, \"♡\", AJ4<=40%, \"♡♡\", AJ4<=60%, \"♡♡♡\", AJ4<=80%, \"♡♡♡♡\", TRUE, \"♡♡♡♡♡\")","v":""}]
[null,2,"Do Yoga",false,false,false,false,false,false,false,false,false,false,false,false,false,false,false,false,false,false,false,false,false,false,false,false,false,false,false,false,false,false,false,{"$f":"COUNTIF(D5:AH5, TRUE)","v":0},{"$f":"AI5/COUNT(_xlfn.ANCHORARRAY($D$3))","v":0},{"$f":"_xlfn.IFS(AJ5=0%, \"\",AJ5<=20%, \"♡\", AJ5<=40%, \"♡♡\", AJ5<=60%, \"♡♡♡\", AJ5<=80%, \"♡♡♡♡\", TRUE, \"♡♡♡♡♡\")","v":""}]
[null,3,"Meditate",false,false,false,false,false,false,false,false,false,false,false,false,false,false,false,false,false,false,false,false,false,false,false,false,false,false,false,false,false,false,false,0,0,{"$f":"_xlfn.IFS(AJ6=0%, \"\",AJ6<=20%, \"♡\", AJ6<=40%, \"♡♡\", AJ6<=60%, \"♡♡♡\", AJ6<=80%, \"♡♡♡♡\", TRUE, \"♡♡♡♡♡\")","v":""}]
[null,4,"Read a book",false,false,false,false,false,false,false,false,false,false,false,false,false,false,false,false,false,false,false,false,false,false,false,false,false,false,false,false,false,false,false,0,0,{"$f":"_xlfn.IFS(AJ7=0%, \"\",AJ7<=20%, \"♡\", AJ7<=40%, \"♡♡\", AJ7<=60%, \"♡♡♡\", AJ7<=80%, \"♡♡♡♡\", TRUE, \"♡♡♡♡♡\")","v":""}]
[null,5,"Exercise at least 30 minutes",false,false,false,false,false,false,false,false,false,false,false,false,false,false,false,false,false,false,false,false,false,false,false,false,false,false,false,false,false,false,false,0,0,{"$f":"_xlfn.IFS(AJ8=0%, \"\",AJ8<=20%, \"♡\", AJ8<=40%, \"♡♡\", AJ8<=60%, \"♡♡♡\", AJ8<=80%, \"♡♡♡♡\", TRUE, \"♡♡♡♡♡\")","v":""}]
[null,6,"Journaling",false,false,false,false,false,false,false,false,false,false,false,false,false,false,false,false,false,false,false,false,false,false,false,false,false,false,false,false,false,false,false,0,0,{"$f":"_xlfn.IFS(AJ9=0%, \"\",AJ9<=20%, \"♡\", AJ9<=40%, \"♡♡\", AJ9<=60%, \"♡♡♡\", AJ9<=80%, \"♡♡♡♡\", TRUE, \"♡♡♡♡♡\")","v":""}]
[null,7,"Eating Veggies",false,false,false,false,false,false,false,false,false,false,false,false,false,false,false,false,false,false,false,false,false,false,false,false,false,false,false,false,false,false,false,0,0,{"$f":"_xlfn.IFS(AJ10=0%, \"\",AJ10<=20%, \"♡\", AJ10<=40%, \"♡♡\", AJ10<=60%, \"♡♡♡\", AJ10<=80%, \"♡♡♡♡\", TRUE, \"♡♡♡♡♡\")","v":""}]
[null,8,"No Fastfood",false,false,false,false,false,false,false,false,false,false,false,false,false,false,false,false,false,false,false,false,false,false,false,false,false,false,false,false,false,false,false,0,0,{"$f":"_xlfn.IFS(AJ11=0%, \"\",AJ11<=20%, \"♡\", AJ11<=40%, \"♡♡\", AJ11<=60%, \"♡♡♡\", AJ11<=80%, \"♡♡♡♡\", TRUE, \"♡♡♡♡♡\")","v":""}]
[null,9,"8 Hours of Sleep",false,false,false,false,false,false,false,false,false,false,false,false,false,false,false,false,false,false,false,false,false,false,false,false,false,false,false,false,false,false,false,0,0,{"$f":"_xlfn.IFS(AJ12=0%, \"\",AJ12<=20%, \"♡\", AJ12<=40%, \"♡♡\", AJ12<=60%, \"♡♡♡\", AJ12<=80%, \"♡♡♡♡\", TRUE, \"♡♡♡♡♡\")","v":""}]
[null,10,"No Sugar",false,false,false,false,false,false,false,false,false,false,false,false,false,false,false,false,false,false,false,false,false,false,false,false,false,false,false,false,false,false,false,0,0,{"$f":"_xlfn.IFS(AJ13=0%, \"\",AJ13<=20%, \"♡\", AJ13<=40%, \"♡♡\", AJ13<=60%, \"♡♡♡\", AJ13<=80%, \"♡♡♡♡\", TRUE, \"♡♡♡♡♡\")","v":""}]
[null,null,{"$f":"COUNTA(C4:C13)","v":10}]
[null,null,"Sunflower"]
[null,null,"Grow Your Plants!",{"$f":"_xlfn.XLOOKUP($C$15,Plants_Name,_xlfn.IFS(Sheet1!D17<=20%,Stage1, Sheet1!D17<=40%, Stage2, Sheet1!D17<=60%, Stage3, Sheet1!D17<=80%, Stage4, TRUE, Stage5))","v":{"$error":"#VALUE!"}},{"$f":"_xlfn.XLOOKUP($C$15,Plants_Name,_xlfn.IFS(Sheet1!E17<=20%,Stage1, Sheet1!E17<=40%, Stage2, Sheet1!E17<=60%, Stage3, Sheet1!E17<=80%, Stage4, TRUE, Stage5))","v":{"$error":"#VALUE!"}},{"$f":"_xlfn.XLOOKUP($C$15,Plants_Name,_xlfn.IFS(Sheet1!F17<=20%,Stage1, Sheet1!F17<=40%, Stage2, Sheet1!F17<=60%, Stage3, Sheet1!F17<=80%, Stage4, TRUE, Stage5))","v":{"$error":"#VALUE!"}},{"$f":"_xlfn.XLOOKUP($C$15,Plants_Name,_xlfn.IFS(Sheet1!G17<=20%,Stage1, Sheet1!G17<=40%, Stage2, Sheet1!G17<=60%, Stage3, Sheet1!G17<=80%, Stage4, TRUE, Stage5))","v":{"$error":"#VALUE!"}},{"$f":"_xlfn.XLOOKUP($C$15,Plants_Name,_xlfn.IFS(Sheet1!H17<=20%,Stage1, Sheet1!H17<=40%, Stage2, Sheet1!H17<=60%, Stage3, Sheet1!H17<=80%, Stage4, TRUE, Stage5))","v":{"$error":"#VALUE!"}},{"$f":"_xlfn.XLOOKUP($C$15,Plants_Name,_xlfn.IFS(Sheet1!I17<=20%,Stage1, Sheet1!I17<=40%, Stage2, Sheet1!I17<=60%, Stage3, Sheet1!I17<=80%, Stage4, TRUE, Stage5))","v":{"$error":"#VALUE!"}},{"$f":"_xlfn.XLOOKUP($C$15,Plants_Name,_xlfn.IFS(Sheet1!J17<=20%,Stage1, Sheet1!J17<=40%, Stage2, Sheet1!J17<=60%, Stage3, Sheet1!J17<=80%, Stage4, TRUE, Stage5))","v":{"$error":"#VALUE!"}},{"$f":"_xlfn.XLOOKUP($C$15,Plants_Name,_xlfn.IFS(Sheet1!K17<=20%,Stage1, Sheet1!K17<=40%, Stage2, Sheet1!K17<=60%, Stage3, Sheet1!K17<=80%, Stage4, TRUE, Stage5))","v":{"$error":"#VALUE!"}},{"$f":"_xlfn.XLOOKUP($C$15,Plants_Name,_xlfn.IFS(Sheet1!L17<=20%,Stage1, Sheet1!L17<=40%, Stage2, Sheet1!L17<=60%, Stage3, Sheet1!L17<=80%, Stage4, TRUE, Stage5))","v":{"$error":"#VALUE!"}},{"$f":"_xlfn.XLOOKUP($C$15,Plants_Name,_xlfn.IFS(Sheet1!M17<=20%,Stage1, Sheet1!M17<=40%, Stage2, Sheet1!M17<=60%, Stage3, Sheet1!M17<=80%, Stage4, TRUE, Stage5))","v":{"$error":"#VALUE!"}},{"$f":"_xlfn.XLOOKUP($C$15,Plants_Name,_xlfn.IFS(Sheet1!N17<=20%,Stage1, Sheet1!N17<=40%, Stage2, Sheet1!N17<=60%, Stage3, Sheet1!N17<=80%, Stage4, TRUE, Stage5))","v":{"$error":"#VALUE!"}},{"$f":"_xlfn.XLOOKUP($C$15,Plants_Name,_xlfn.IFS(Sheet1!O17<=20%,Stage1, Sheet1!O17<=40%, Stage2, Sheet1!O17<=60%, Stage3, Sheet1!O17<=80%, Stage4, TRUE, Stage5))","v":{"$error":"#VALUE!"}},{"$f":"_xlfn.XLOOKUP($C$15,Plants_Name,_xlfn.IFS(Sheet1!P17<=20%,Stage1, Sheet1!P17<=40%, Stage2, Sheet1!P17<=60%, Stage3, Sheet1!P17<=80%, Stage4, TRUE, Stage5))","v":{"$error":"#VALUE!"}},{"$f":"_xlfn.XLOOKUP($C$15,Plants_Name,_xlfn.IFS(Sheet1!Q17<=20%,Stage1, Sheet1!Q17<=40%, Stage2, Sheet1!Q17<=60%, Stage3, Sheet1!Q17<=80%, Stage4, TRUE, Stage5))","v":{"$error":"#VALUE!"}},{"$f":"_xlfn.XLOOKUP($C$15,Plants_Name,_xlfn.IFS(Sheet1!R17<=20%,Stage1, Sheet1!R17<=40%, Stage2, Sheet1!R17<=60%, Stage3, Sheet1!R17<=80%, Stage4, TRUE, Stage5))","v":{"$error":"#VALUE!"}},{"$f":"_xlfn.XLOOKUP($C$15,Plants_Name,_xlfn.IFS(Sheet1!S17<=20%,Stage1, Sheet1!S17<=40%, Stage2, Sheet1!S17<=60%, Stage3, Sheet1!S17<=80%, Stage4, TRUE, Stage5))","v":{"$error":"#VALUE!"}},{"$f":"_xlfn.XLOOKUP($C$15,Plants_Name,_xlfn.IFS(Sheet1!T17<=20%,Stage1, Sheet1!T17<=40%, Stage2, Sheet1!T17<=60%, Stage3, Sheet1!T17<=80%, Stage4, TRUE, Stage5))","v":{"$error":"#VALUE!"}},{"$f":"_xlfn.XLOOKUP($C$15,Plants_Name,_xlfn.IFS(Sheet1!U17<=20%,Stage1, Sheet1!U17<=40%, Stage2, Sheet1!U17<=60%, Stage3, Sheet1!U17<=80%, Stage4, TRUE, Stage5))","v":{"$error":"#VALUE!"}},{"$f":"_xlfn.XLOOKUP($C$15,Plants_Name,_xlfn.IFS(Sheet1!V17<=20%,Stage1, Sheet1!V17<=40%, Stage2, Sheet1!V17<=60%, Stage3, Sheet1!V17<=80%, Stage4, TRUE, Stage5))","v":{"$error":"#VALUE!"}},{"$f":"_xlfn.XLOOKUP($C$15,Plants_Name,_xlfn.IFS(Sheet1!W17<=20%,Stage1, Sheet1!W17<=40%, Stage2, Sheet1!W17<=60%, Stage3, Sheet1!W17<=80%, Stage4, TRUE, Stage5))","v":{"$error":"#VALUE!"}},{"$f":"_xlfn.XLOOKUP($C$15,Plants_Name,_xlfn.IFS(Sheet1!X17<=20%,Stage1, Sheet1!X17<=40%, Stage2, Sheet1!X17<=60%, Stage3, Sheet1!X17<=80%, Stage4, TRUE, Stage5))","v":{"$error":"#VALUE!"}},{"$f":"_xlfn.XLOOKUP($C$15,Plants_Name,_xlfn.IFS(Sheet1!Y17<=20%,Stage1, Sheet1!Y17<=40%, Stage2, Sheet1!Y17<=60%, Stage3, Sheet1!Y17<=80%, Stage4, TRUE, Stage5))","v":{"$error":"#VALUE!"}},{"$f":"_xlfn.XLOOKUP($C$15,Plants_Name,_xlfn.IFS(Sheet1!Z17<=20%,Stage1, Sheet1!Z17<=40%, Stage2, Sheet1!Z17<=60%, Stage3, Sheet1!Z17<=80%, Stage4, TRUE, Stage5))","v":{"$error":"#VALUE!"}},{"$f":"_xlfn.XLOOKUP($C$15,Plants_Name,_xlfn.IFS(Sheet1!AA17<=20%,Stage1, Sheet1!AA17<=40%, Stage2, Sheet1!AA17<=60%, Stage3, Sheet1!AA17<=80%, Stage4, TRUE, Stage5))","v":{"$error":"#VALUE!"}},{"$f":"_xlfn.XLOOKUP($C$15,Plants_Name,_xlfn.IFS(Sheet1!AB17<=20%,Stage1, Sheet1!AB17<=40%, Stage2, Sheet1!AB17<=60%, Stage3, Sheet1!AB17<=80%, Stage4, TRUE, Stage5))","v":{"$error":"#VALUE!"}},{"$f":"_xlfn.XLOOKUP($C$15,Plants_Name,_xlfn.IFS(Sheet1!AC17<=20%,Stage1, Sheet1!AC17<=40%, Stage2, Sheet1!AC17<=60%, Stage3, Sheet1!AC17<=80%, Stage4, TRUE, Stage5))","v":{"$error":"#VALUE!"}},{"$f":"_xlfn.XLOOKUP($C$15,Plants_Name,_xlfn.IFS(Sheet1!AD17<=20%,Stage1, Sheet1!AD17<=40%, Stage2, Sheet1!AD17<=60%, Stage3, Sheet1!AD17<=80%, Stage4, TRUE, Stage5))","v":{"$error":"#VALUE!"}},{"$f":"_xlfn.XLOOKUP($C$15,Plants_Name,_xlfn.IFS(Sheet1!AE17<=20%,Stage1, Sheet1!AE17<=40%, Stage2, Sheet1!AE17<=60%, Stage3, Sheet1!AE17<=80%, Stage4, TRUE, Stage5))","v":{"$error":"#VALUE!"}},{"$f":"_xlfn.XLOOKUP($C$15,Plants_Name,_xlfn.IFS(Sheet1!AF17<=20%,Stage1, Sheet1!AF17<=40%, Stage2, Sheet1!AF17<=60%, Stage3, Sheet1!AF17<=80%, Stage4, TRUE, Stage5))","v":{"$error":"#VALUE!"}},{"$f":"_xlfn.XLOOKUP($C$15,Plants_Name,_xlfn.IFS(Sheet1!AG17<=20%,Stage1, Sheet1!AG17<=40%, Stage2, Sheet1!AG17<=60%, Stage3, Sheet1!AG17<=80%, Stage4, TRUE, Stage5))","v":{"$error":"#VALUE!"}},{"$f":"_xlfn.XLOOKUP($C$15,Plants_Name,_xlfn.IFS(Sheet1!AH17<=20%,Stage1, Sheet1!AH17<=40%, Stage2, Sheet1!AH17<=60%, Stage3, Sheet1!AH17<=80%, Stage4, TRUE, Stage5))","v":{"$error":"#VALUE!"}}]
[null,null,"%",{"$f":"COUNTIF(D4:D13,TRUE)/$C$14","v":0},{"$f":"COUNTIF(E4:E13,TRUE)/$C$14","v":0},0,0,0,0,0,0,0,0,0,0,0,0,0,0,0,0,0,0,0,0,0,0,0,0,0,0,0,0,0]

{"sheet":"Icons","index":1,"n_rows":9,"n_cols":7,"rows_kept":9,"cut":false,"hidden":false,"merged":[[1,1,1,6]]}
[]
[null,"Plants"]
[null,null,"Stage1","Stage2","Stage3","Stage4","Stage5"]
[null,"Tulip",{"$error":"#VALUE!"},{"$error":"#VALUE!"},{"$error":"#VALUE!"},{"$error":"#VALUE!"},{"$error":"#VALUE!"}]
[null,"Poppy",{"$error":"#VALUE!"},{"$error":"#VALUE!"},{"$error":"#VALUE!"},{"$error":"#VALUE!"},{"$error":"#VALUE!"}]
[null,"Sunflower",{"$error":"#VALUE!"},{"$error":"#VALUE!"},{"$error":"#VALUE!"},{"$error":"#VALUE!"},{"$error":"#VALUE!"}]
[null,"Fairy Rose",{"$error":"#VALUE!"},{"$error":"#VALUE!"},{"$error":"#VALUE!"},{"$error":"#VALUE!"},{"$error":"#VALUE!"}]
[null,"Blue Jazz",{"$error":"#VALUE!"},{"$error":"#VALUE!"},{"$error":"#VALUE!"},{"$error":"#VALUE!"},{"$error":"#VALUE!"}]
[null,null,"0 - 20%","21 - 40%","41 - 60%","61 - 80%","81 - 100%"]